fUSD/lending_fUSD_20260605
["ID","MTS","AMOUNT","RATE_DAILY","PERIOD"]
[424174241,1780626682000,-150.0,0.0003874,2]
[424174244,1780626682000,-2710.0,0.0003874,120]
[424174246,1780626682000,-914.0,0.0003874,120]
[424174251,1780626682000,-504.0,0.00038741,14]
[424174245,1780626682000,-2529.0,0.0003874,120]
[424174252,1780626682000,-686.0,0.00038741,120]
[424174249,1780626682000,-729.0,0.0003874,120]
[424174253,1780626682000,-3521.0,0.00038741,120]
[424174254,1780626682000,-158.19552394,0.00038741,2]
[424174248,1780626682000,-3579.0,0.0003874,120]
[424174247,1780626682000,-590.0,0.0003874,120]
[424174250,1780626682000,-1280.36,0.00038741,60]
[424174233,1780626682000,-35309.28,0.00038715,14]
[424174218,1780626682000,-500.0,0.000387,14]
[424174184,1780626682000,-150.0,0.00038644,6]
[424174222,1780626682000,-500.0,0.000387,14]
[424174225,1780626682000,-500.0,0.000387,14]
[424174197,1780626682000,-560.58,0.000387,120]
[424174192,1780626682000,-1378.08,0.000387,120]
[424174191,1780626682000,-1299.57,0.000387,120]
[424174195,1780626682000,-248.63,0.000387,120]
[424174196,1780626682000,-199.13,0.000387,120]
[424174198,1780626682000,-324.74,0.000387,120]
[424174194,1780626682000,-251.24,0.000387,120]
[424174199,1780626682000,-429.03,0.000387,120]
[424174201,1780626682000,-154.0,0.000387,120]
[424174202,1780626682000,-395.089162,0.000387,21]
[424174200,1780626682000,-336.84,0.000387,120]
[424174215,1780626682000,-191.984962,0.000387,21]
[424174212,1780626682000,-196.649737,0.000387,21]
[424174214,1780626682000,-276.844743,0.000387,21]
[424174193,1780626682000,-474.26,0.000387,120]
[424174213,1780626682000,-353.055588,0.000387,21]
[424174203,1780626682000,-386.705656,0.000387,21]
[424174220,1780626682000,-500.0,0.000387,14]
[424174219,1780626682000,-500.0,0.000387,14]
[424174217,1780626682000,-168.187521,0.000387,21]
[424174209,1780626682000,-160.902776,0.000387,21]
[424174208,1780626682000,-247.364994,0.000387,21]
[424174221,1780626682000,-500.0,0.000387,14]
[424174211,1780626682000,-177.917861,0.000387,2]
[424174210,1780626682000,-342.809674,0.000387,21]
[424174205,1780626682000,-161.14101,0.000387,21]
[424174206,1780626682000,-160.507559,0.000387,21]
[424174204,1780626682000,-187.775741,0.000387,2]
[424174216,1780626682000,-247.649473,0.000387,21]
[424174207,1780626682000,-302.181576,0.000387,21]
[424174300,1780626683000,-150.0,0.00038859,2]
[424174301,1780626683000,-150.0,0.00038859,2]
[424174297,1780626683000,-150.0,0.00038859,2]
[424174291,1780626683000,-218.11518126,0.00038829,120]
[424174294,1780626683000,-150.0,0.00038859,2]
[424174287,1780626683000,-51350.0,0.000388,30]
[424174293,1780626683000,-500.0,0.00038846,60]
[424174289,1780626683000,-1052.89,0.0003882,2]
[424174290,1780626683000,-150.0,0.00038822,120]
[424174288,1780626683000,-80000.0,0.000388,30]
[424174299,1780626683000,-150.0,0.00038859,2]
[424174286,1780626683000,-182.0,0.000388,120]
[424174292,1780626683000,-350.0,0.00038838,54]
[424174305,1780626683000,-151.19220666,0.00038889,2]
[424174306,1780626683000,-49316.95,0.00038894,14]
[424174303,1780626683000,-154.23,0.0003886,120]
[424174298,1780626683000,-150.0,0.00038859,2]
[424174308,1780626683000,-7568.57006927,0.000389,14]
[424174304,1780626683000,-2054.17084605,0.0003888,60]
[424174307,1780626683000,-35309.28,0.00038894,14]
[424174310,1780626683000,-417.55112765,0.000389,120]
[424174321,1780626683000,-761.93,0.00038942,30]
[424174312,1780626683000,-150.0,0.00038904,120]
[424174320,1780626683000,-537.04,0.00038942,30]
[424174313,1780626683000,-150.0,0.00038904,30]
[424174315,1780626683000,-215.602107,0.00038904,120]
[424174309,1780626683000,-566.9,0.000389,120]
[424174284,1780626683000,-500.0,0.000388,14]
[424174302,1780626683000,-150.0,0.00038859,2]
[424174285,1780626683000,-500.0,0.000388,14]
[424174267,1780626683000,-760.32,0.00038767,15]
[424174296,1780626683000,-150.0,0.00038859,2]
[424174257,1780626683000,-497.766924,0.00038741,120]
[424174256,1780626683000,-3256.72235593,0.00038741,120]
[424174255,1780626683000,-997.0,0.00038741,120]
[424174259,1780626683000,-1794.0,0.00038741,120]
[424174269,1780626683000,-281.7,0.00038774,30]
[424174270,1780626683000,-422.55,0.00038774,120]
[424174258,1780626683000,-1831.75017305,0.00038741,120]
[424174261,1780626683000,-20165.87949159,0.00038741,120]
[424174263,1780626683000,-526.0,0.00038741,120]
[424174262,1780626683000,-2200.57460003,0.00038741,120]
[424174260,1780626683000,-2000.0,0.00038741,120]
[424174265,1780626683000,-154.23,0.0003876,120]
[424174264,1780626683000,-193.03772076,0.00038757,120]
[424174266,1780626683000,-150.0,0.00038767,120]
[424174268,1780626683000,-553.11390217,0.00038768,120]
[424174316,1780626683000,-620.11270704,0.00038917,7]
[424174271,1780626683000,-150.0,0.00038775,2]
[424174273,1780626683000,-5039.90316158,0.00038794,2]
[424174276,1780626683000,-24257.51832753,0.00038799,7]
[424174274,1780626683000,-1514.14539939,0.00038799,7]
[424174275,1780626683000,-4851.21886147,0.00038799,7]
[424174282,1780626683000,-500.0,0.000388,14]
[424174277,1780626683000,-1514.14539939,0.000388,7]
[424174272,1780626683000,-151.19220666,0.00038789,2]
[424174283,1780626683000,-500.0,0.000388,14]
[424174280,1780626683000,-225.389548,0.000388,22]
[424174279,1780626683000,-4851.21886147,0.000388,7]
[424174281,1780626683000,-500.0,0.000388,14]
[424174278,1780626683000,-150.0,0.000388,2]
[424174295,1780626683000,-150.0,0.00038859,2]
[424174319,1780626683000,-1453.77,0.00038939,30]
[424174311,1780626683000,-5000.0,0.00038904,120]
[424174317,1780626683000,-216.5681034,0.00038918,120]
[424174350,1780626683000,-50000.0,0.00038999,63]
[424174355,1780626683000,-1087.57,0.00038999,30]
[424174356,1780626683000,-50000.0,0.00039,69]
[424174362,1780626683000,-797.0,0.00039,120]
[424174358,1780626683000,-75506.02640937,0.00039,2]
[424174360,1780626683000,-75506.02640937,0.00039,2]
[424174361,1780626683000,-100000.0,0.00039,30]
[424174359,1780626683000,-75506.02640937,0.00039,2]
[424174357,1780626683000,-75506.02640937,0.00039,2]
[424174363,1780626683000,-797.16531092,0.00039,120]
[424174364,1780626683000,-487.0,0.00039,120]
[424174372,1780626683000,-487.0,0.00039,120]
[424174365,1780626683000,-487.0,0.00039,120]
[424174371,1780626683000,-487.0,0.00039,120]
[424174353,1780626683000,-175.73675625,0.00038999,120]
[424174367,1780626683000,-487.0,0.00039,120]
[424174369,1780626683000,-487.0,0.00039,120]
[424174368,1780626683000,-487.0,0.00039,120]
[424174373,1780626683000,-487.0,0.00039,120]
[424174314,1780626683000,-300.0,0.00038904,120]
[424174374,1780626683000,-487.0,0.00039,120]
[424174375,1780626683000,-487.0,0.00039,120]
[424174382,1780626683000,-487.0,0.00039,120]
[424174379,1780626683000,-487.0,0.00039,120]
[424174383,1780626683000,-487.0,0.00039,120]
[424174381,1780626683000,-487.0,0.00039,120]
[424174380,1780626683000,-487.0,0.00039,120]
[424174376,1780626683000,-487.0,0.00039,120]
[424174377,1780626683000,-487.0,0.00039,120]
[424174378,1780626683000,-487.0,0.00039,120]
[424174366,1780626683000,-487.0,0.00039,120]
[424174351,1780626683000,-50000.0,0.00038999,64]
[424174370,1780626683000,-487.0,0.00039,120]
[424174352,1780626683000,-50000.0,0.00038999,65]
[424174354,1780626683000,-276.43618742,0.00038999,120]
[424174322,1780626683000,-5000.0,0.00038953,2]
[424174324,1780626683000,-154.23,0.0003896,120]
[424174325,1780626683000,-264.58,0.0003896,113]
[424174327,1780626683000,-8182.0,0.0003897,120]
[424174326,1780626683000,-8182.0,0.0003897,120]
[424174323,1780626683000,-251.7995922,0.00038953,2]
[424174333,1780626683000,-1479.63722076,0.0003898,30]
[424174328,1780626683000,-8182.0,0.0003898,120]
[424174330,1780626683000,-8182.0,0.0003898,120]
[424174334,1780626683000,-151.19220666,0.00038989,2]
[424174335,1780626683000,-8182.0,0.0003899,120]
[424174331,1780626683000,-8185.28,0.0003898,120]
[424174329,1780626683000,-8182.0,0.0003898,120]
[424174318,1780626683000,-151.0,0.00038919,4]
[424174337,1780626683000,-8182.0,0.0003899,120]
[424174349,1780626683000,-50000.0,0.00038999,62]
[424174332,1780626683000,-386.52401027,0.0003898,70]
[424174339,1780626683000,-450.34,0.00038994,120]
[424174343,1780626683000,-450.34,0.00038994,120]
[424174344,1780626683000,-450.34,0.00038994,120]
[424174341,1780626683000,-450.34,0.00038994,120]
[424174340,1780626683000,-450.34,0.00038994,120]
[424174336,1780626683000,-8182.0,0.0003899,120]
[424174338,1780626683000,-8182.0,0.0003899,120]
[424174347,1780626683000,-450.34,0.00038994,120]
[424174348,1780626683000,-450.32766861,0.00038994,120]
[424174345,1780626683000,-450.34,0.00038994,120]
[424174346,1780626683000,-450.34,0.00038994,120]
[424174342,1780626683000,-450.34,0.00038994,120]
[424174403,1780626684000,-487.0,0.00039,120]
[424174413,1780626684000,-241.03,0.00039,120]
[424174405,1780626684000,-487.0,0.00039,120]
[424174406,1780626684000,-487.0,0.00039,120]
[424174410,1780626684000,-487.0,0.00039,120]
[424174411,1780626684000,-487.0,0.00039,120]
[424174407,1780626684000,-487.0,0.00039,120]
[424174412,1780626684000,-398.38,0.00039,120]
[424174408,1780626684000,-487.0,0.00039,120]
[424174418,1780626684000,-1274.46023127,0.00039,120]
[424174420,1780626684000,-1124.0,0.00039,30]
[424174417,1780626684000,-500.0,0.00039,12]
[424174421,1780626684000,-613.439003,0.00039,120]
[424174426,1780626684000,-487.0,0.00039,120]
[424174422,1780626684000,-487.0,0.00039,120]
[424174429,1780626684000,-1800.00000001,0.00039,120]
[424174428,1780626684000,-487.0,0.00039,120]
[424174427,1780626684000,-500.0,0.00039,2]
[424174414,1780626684000,-1000.0,0.00039,30]
[424174409,1780626684000,-487.0,0.00039,120]
[424174419,1780626684000,-500.0,0.00039,2]
[424174396,1780626684000,-487.0,0.00039,120]
[424174415,1780626684000,-3681.88002611,0.00039,120]
[424174425,1780626684000,-500.0,0.00039,2]
[424174384,1780626684000,-487.0,0.00039,120]
[424174386,1780626684000,-487.0,0.00039,120]
[424174385,1780626684000,-487.0,0.00039,120]
[424174389,1780626684000,-487.0,0.00039,120]
[424174388,1780626684000,-487.0,0.00039,120]
[424174387,1780626684000,-2000.0,0.00039,120]
[424174392,1780626684000,-2000.0,0.00039,120]
[424174393,1780626684000,-487.0,0.00039,120]
[424174416,1780626684000,-383.12801359,0.00039,12]
[424174395,1780626684000,-1375.13,0.00039,120]
[424174402,1780626684000,-487.0,0.00039,120]
[424174394,1780626684000,-487.0,0.00039,120]
[424174397,1780626684000,-487.0,0.00039,120]
[424174390,1780626684000,-500.0,0.00039,12]
[424174391,1780626684000,-487.0,0.00039,120]
[424174399,1780626684000,-487.0,0.00039,120]
[424174400,1780626684000,-487.0,0.00039,120]
[424174401,1780626684000,-487.0,0.00039,120]
[424174404,1780626684000,-487.0,0.00039,120]
[424174398,1780626684000,-487.0,0.00039,120]
[424174424,1780626684000,-487.0,0.00039,120]
[424174456,1780626684000,-506.62,0.00039,30]
[424174441,1780626684000,-500.0,0.00039,2]
[424174455,1780626684000,-1000.0,0.00039,30]
[424174457,1780626684000,-506.62,0.00039,30]
[424174459,1780626684000,-506.62,0.00039,30]
[424174458,1780626684000,-10171.0,0.00039,30]
[424174460,1780626684000,-506.62,0.00039,30]
[424174462,1780626684000,-506.62,0.00039,30]
[424174461,1780626684000,-506.62,0.00039,30]
[424174463,1780626684000,-506.62,0.00039,30]
[424174465,1780626684000,-506.62,0.00039,30]
[424174464,1780626684000,-506.62,0.00039,30]
[424174466,1780626684000,-506.62,0.00039,30]
[424174468,1780626684000,-506.62,0.00039,30]
[424174467,1780626684000,-506.62,0.00039,30]
[424174470,1780626684000,-506.62,0.00039,30]
[424174472,1780626684000,-506.62,0.00039,30]
[424174471,1780626684000,-506.62,0.00039,30]
[424174473,1780626684000,-506.62,0.00039,30]
[424174474,1780626684000,-506.62,0.00039,30]
[424174423,1780626684000,-1000.0,0.00039,30]
[424174445,1780626684000,-500.0,0.00039,2]
[424174449,1780626684000,-506.62,0.00039,30]
[424174469,1780626684000,-506.62,0.00039,30]
[424174451,1780626684000,-506.62,0.00039,30]
[424174453,1780626684000,-506.62,0.00039,30]
[424174438,1780626684000,-500.0,0.00039,2]
[424174430,1780626684000,-740.55,0.00039,120]
[424174442,1780626684000,-500.0,0.00039,2]
[424174431,1780626684000,-500.0,0.00039,2]
[424174433,1780626684000,-500.0,0.00039,2]
[424174443,1780626684000,-1000.0,0.00039,60]
[424174436,1780626684000,-500.0,0.00039,2]
[424174434,1780626684000,-500.0,0.00039,2]
[424174435,1780626684000,-500.0,0.00039,2]
[424174432,1780626684000,-500.0,0.00039,2]
[424174440,1780626684000,-500.0,0.00039,2]
[424174437,1780626684000,-1000.0,0.00039,30]
[424174454,1780626684000,-506.62,0.00039,30]
[424174450,1780626684000,-506.62,0.00039,30]
[424174448,1780626684000,-1000.0,0.00039,30]
[424174452,1780626684000,-506.62,0.00039,30]
[424174447,1780626684000,-500.0,0.00039,2]
[424174444,1780626684000,-500.0,0.00039,2]
[424174439,1780626684000,-500.0,0.00039,2]
[424174446,1780626684000,-500.0,0.00039,2]
[424174504,1780626685000,-800.0,0.00039,31]
[424174493,1780626685000,-258.25,0.00039,120]
[424174503,1780626685000,-800.0,0.00039,31]
[424174498,1780626685000,-1000.0,0.00039,60]
[424174495,1780626685000,-1000.0,0.00039,30]
[424174499,1780626685000,-500.0,0.00039,60]
[424174497,1780626685000,-1000.0,0.00039,60]
[424174506,1780626685000,-800.0,0.00039,31]
[424174496,1780626685000,-1000.0,0.00039,60]
[424174500,1780626685000,-800.0,0.00039,31]
[424174508,1780626685000,-800.0,0.00039,31]
[424174509,1780626685000,-800.0,0.00039,31]
[424174510,1780626685000,-800.0,0.00039,31]
[424174505,1780626685000,-800.0,0.00039,31]
[424174502,1780626685000,-800.0,0.00039,31]
[424174494,1780626685000,-1000.0,0.00039,30]
[424174481,1780626685000,-506.62,0.00039,30]
[424174487,1780626685000,-500.0,0.00039,120]
[424174475,1780626685000,-506.62,0.00039,30]
[424174476,1780626685000,-506.62,0.00039,30]
[424174479,1780626685000,-506.62,0.00039,30]
[424174478,1780626685000,-506.62,0.00039,30]
[424174477,1780626685000,-506.62,0.00039,30]
[424174480,1780626685000,-506.62,0.00039,30]
[424174482,1780626685000,-506.62,0.00039,30]
[424174488,1780626685000,-500.0,0.00039,120]
[424174483,1780626685000,-506.62,0.00039,30]
[424174484,1780626685000,-506.66,0.00039,30]
[424174490,1780626685000,-500.0,0.00039,120]
[424174486,1780626685000,-500.0,0.00039,120]
[424174492,1780626685000,-1000.0,0.00039,30]
[424174489,1780626685000,-500.0,0.00039,120]
[424174491,1780626685000,-258.25,0.00039,120]
[424174485,1780626685000,-1000.0,0.00039,30]
[424174507,1780626685000,-800.0,0.00039,31]
[424174513,1780626685000,-800.0,0.00039,31]
[424174501,1780626685000,-800.0,0.00039,31]
[424174515,1780626685000,-800.0,0.00039,31]
[424174542,1780626685000,-1223.0,0.00039,30]
[424174536,1780626685000,-5000.0,0.00039,38]
[424174534,1780626685000,-5000.0,0.00039,36]
[424174540,1780626685000,-500.0,0.00039,120]
[424174535,1780626685000,-5000.0,0.00039,37]
[424174538,1780626685000,-120345.92176305,0.00039,120]
[424174537,1780626685000,-1000.0,0.00039,30]
[424174539,1780626685000,-500.0,0.00039,120]
[424174544,1780626685000,-806.62633307,0.00039,120]
[424174543,1780626685000,-361.69363469,0.00039,120]
[424174545,1780626685000,-648.84754389,0.00039,30]
[424174546,1780626685000,-27136.76552846,0.00039,61]
[424174548,1780626685000,-497634.42151423,0.00039,20]
[424174547,1780626685000,-686.32253195,0.00039,120]
[424174517,1780626685000,-800.0,0.00039,31]
[424174532,1780626685000,-40368.05688327,0.00039,120]
[424174541,1780626685000,-151.0,0.00039,120]
[424174511,1780626685000,-800.0,0.00039,31]
[424174531,1780626685000,-952.31,0.00039,120]
[424174516,1780626685000,-800.0,0.00039,31]
[424174533,1780626685000,-102830.0,0.00039,60]
[424174514,1780626685000,-800.0,0.00039,31]
[424174512,1780626685000,-800.0,0.00039,31]
[424174529,1780626685000,-487.0,0.00039,120]
[424174519,1780626685000,-800.0,0.00039,31]
[424174522,1780626685000,-229.4,0.00039,120]
[424174530,1780626685000,-487.0,0.00039,120]
[424174521,1780626685000,-5000.0,0.00039,120]
[424174520,1780626685000,-800.0,0.00039,31]
[424174523,1780626685000,-233.8996413,0.00039,120]
[424174524,1780626685000,-233.8996413,0.00039,120]
[424174526,1780626685000,-233.8996413,0.00039,120]
[424174525,1780626685000,-233.8996413,0.00039,120]
[424174527,1780626685000,-233.8996413,0.00039,120]
[424174528,1780626685000,-487.0,0.00039,120]
[424174518,1780626685000,-800.0,0.00039,31]
[424174551,1780626686000,-1348.74352384,0.00039,20]
[424174549,1780626686000,-761.13201031,0.00039,20]
[424174550,1780626686000,-6610.17528785,0.00039,20]
[424174554,1780626686000,-994.88578049,0.00039,20]
[424174553,1780626686000,-9047.78876619,0.00039,20]
[424174555,1780626686000,-469.80651096,0.00039,20]
[424174556,1780626686000,-3937.47766471,0.00039,20]
[424174552,1780626686000,-7749.46328672,0.00039,20]
[424174558,1780626688000,-1733269.92679116,0.00039,20]
[424174557,1780626688000,-7.1308092,0.00039,20]
[424174560,1780626688000,-398.0,0.00039,20]
[424174563,1780626688000,-152.0,0.00026229,7]
[424174559,1780626688000,-152.0,0.00012711,2]
[424174562,1780626688000,-152.0,0.00012725,2]
[424174564,1780626688000,-299.01349807,0.00039,20]
[424174561,1780626688000,-958.66442166,0.00039,20]
[424174565,1780626703000,-311.05,0.00010892,2]
[424174566,1780626703000,-311.05,0.00011497,2]
[424174577,1780626703000,-152.0,0.00026257,7]
[424174572,1780626703000,-311.05,0.00015128,2]
[424174573,1780626703000,-311.05,0.00015733,2]
[424174569,1780626703000,-311.05,0.00013313,2]
[424174576,1780626703000,-152.0,0.00026229,7]
[424174567,1780626703000,-311.05,0.00012102,2]
[424174571,1780626703000,-311.05,0.00014523,2]
[424174575,1780626703000,-311.05,0.00016338,2]
[424174578,1780626703000,-152.0,0.00026257,7]
[424174574,1780626703000,-806.89933023,0.00016016,2]
[424174568,1780626703000,-311.05,0.00012708,2]
[424174579,1780626703000,-150.0,0.00029534,2]
[424174583,1780626703000,-7684.04808768,0.00039,20]
[424174580,1780626703000,-3948.62146977,0.00039,20]
[424174582,1780626703000,-152.0,0.00026257,7]
[424174584,1780626703000,152.0,0.00029892,120]
[424174585,1780626703000,152.0,0.00029913,120]
[424174570,1780626703000,-311.05,0.00013918,2]
[424174581,1780626703000,-6280.0,0.00039,20]
[424174586,1780626718000,-250.0,0.00011195,2]
[424174587,1780626718000,-61.05,0.00011821,2]
[424174590,1780626718000,-100.0,0.00011821,2]
[424174589,1780626718000,-150.0,0.00011008,2]
[424174588,1780626718000,151.03948634,0.00010892,7]
[424174591,1780626754000,-88.95,0.00011821,2]
[424174592,1780626770000,10000.0,0.00030137,120]
[424174593,1780626772000,10000.0,0.00030137,120]
[424174594,1780626775000,10000.0,0.00030137,120]
[424174595,1780626778000,10000.0,0.00030137,120]
[424174596,1780626780000,10000.0,0.00030137,120]
[424174597,1780626818000,500.0,0.000118,4]
[424174598,1780626818000,289.00755297,0.00011821,7]
[424174599,1780626819000,289.00755297,0.00012057,7]
[424174600,1780626820000,289.00755297,0.00012412,7]
[424174602,1780626820000,289.00755297,0.00012766,7]
[424174601,1780626820000,1100.0,0.000119,4]
[424174603,1780626821000,289.00755298,0.00013239,7]
[424174604,1780626822000,1600.0,0.000127,4]
[424174606,1780626824000,151.20204843,0.00010892,7]
[424174605,1780626824000,2200.0,0.000128,4]
[424174607,1780626826000,2700.0,0.000129,4]
[424174608,1780626838000,169.5,0.00030137,120]
[424174611,1780626873000,-251.93596117,0.00010895,2]
[424174609,1780626873000,-171.1306844,0.00010796,2]
[424174610,1780626873000,-621.22240629,0.00010895,2]
[424174612,1780626873000,-621.22240629,0.00010895,2]
[424174613,1780626873000,-621.22240629,0.00010895,2]
[424174614,1780626873000,-621.22240629,0.00010895,2]
[424174616,1780626873000,-1470.82132298,0.00010896,2]
[424174615,1780626873000,-621.22240629,0.00010895,2]
[424174625,1780626876000,-30.22074968,0.00010895,2]
[424174624,1780626876000,-621.22240629,0.00010895,2]
[424174621,1780626876000,-621.22240629,0.00010895,2]
[424174620,1780626876000,-621.22240629,0.00010895,2]
[424174622,1780626876000,-621.22240629,0.00010895,2]
[424174619,1780626876000,-621.22240629,0.00010895,2]
[424174623,1780626876000,-621.22240629,0.00010895,2]
[424174617,1780626876000,-621.22240629,0.00010895,2]
[424174618,1780626876000,-621.22240629,0.00010895,2]
[424174626,1780626877000,-591.00165661,0.00010895,2]
[424174627,1780626877000,-621.22240629,0.00010895,2]
[424174628,1780626877000,-263.10865424,0.00010895,2]
[424174633,1780626877000,-621.22240629,0.00010895,2]
[424174630,1780626877000,-621.22240629,0.00010895,2]
[424174631,1780626877000,-621.22240629,0.00010895,2]
[424174632,1780626877000,-621.22240629,0.00010895,2]
[424174629,1780626877000,-621.22240629,0.00010895,2]
[424174634,1780626878000,-418.55525141,0.00010895,2]
[424174638,1780626879000,-621.22240629,0.00010895,2]
[424174635,1780626879000,-202.66715488,0.00010895,2]
[424174637,1780626879000,-621.22240629,0.00010895,2]
[424174636,1780626879000,-621.22240629,0.00010895,2]
[424174640,1780626879000,-621.22240629,0.00010895,2]
[424174641,1780626879000,-621.22240629,0.00010895,2]
[424174642,1780626879000,-621.22240629,0.00010895,2]
[424174643,1780626879000,-448.77600109,0.00010895,2]
[424174639,1780626879000,-621.22240629,0.00010895,2]
[424174648,1780626883000,-621.22240629,0.00010895,2]
[424174646,1780626883000,-621.22240629,0.00010895,2]
[424174647,1780626883000,-621.22240629,0.00010895,2]
[424174645,1780626883000,-172.4464052,0.00010895,2]
[424174651,1780626883000,-621.22240629,0.00010895,2]
[424174650,1780626883000,-621.22240629,0.00010895,2]
[424174652,1780626883000,-621.22240629,0.00010895,2]
[424174653,1780626883000,-478.99675077,0.00010895,2]
[424174649,1780626883000,-621.22240629,0.00010895,2]
[424174655,1780626896000,-621.22240629,0.00010895,2]
[424174654,1780626896000,-142.22565552,0.00010895,2]
[424174656,1780626896000,-621.22240629,0.00010895,2]
[424174658,1780626896000,-621.22240629,0.00010895,2]
[424174660,1780626896000,-621.22240629,0.00010895,2]
[424174657,1780626896000,-621.22240629,0.00010895,2]
[424174662,1780626896000,-509.21750045,0.00010895,2]
[424174661,1780626896000,-621.22240629,0.00010895,2]
[424174659,1780626896000,-621.22240629,0.00010895,2]
[424174664,1780626897000,-621.22240629,0.00010895,2]
[424174663,1780626897000,-112.00490584,0.00010895,2]
[424174667,1780626897000,-621.22240629,0.00010895,2]
[424174665,1780626897000,-621.22240629,0.00010895,2]
[424174669,1780626897000,-621.22240629,0.00010895,2]
[424174668,1780626897000,-621.22240629,0.00010895,2]
[424174670,1780626897000,-621.22240629,0.00010895,2]
[424174671,1780626897000,-539.43825013,0.00010895,2]
[424174666,1780626897000,-621.22240629,0.00010895,2]
[424174672,1780626898000,-81.78415616,0.00010895,2]
[424174674,1780626898000,-621.22240629,0.00010895,2]
[424174673,1780626898000,-621.22240629,0.00010895,2]
[424174675,1780626898000,-621.22240629,0.00010895,2]
[424174676,1780626898000,-500.0,0.00010895,2]
[424174677,1780626898000,-500.0,0.00010895,2]
[424174679,1780626898000,-500.0,0.00010895,2]
[424174680,1780626898000,-500.0,0.00010895,2]
[424174681,1780626898000,-500.0,0.00010895,2]
[424174682,1780626898000,-54.54862497,0.00010895,2]
[424174678,1780626898000,-500.0,0.00010895,2]
[424174686,1780626900000,-500.0,0.00010895,2]
[424174683,1780626900000,-445.45137503,0.00010895,2]
[424174684,1780626900000,-500.0,0.00010895,2]
[424174685,1780626900000,-500.0,0.00010895,2]
[424174687,1780626900000,-500.0,0.00010895,2]
[424174693,1780626900000,-54.54862497,0.00010895,2]
[424174689,1780626900000,-500.0,0.00010895,2]
[424174690,1780626900000,-500.0,0.00010895,2]
[424174691,1780626900000,-500.0,0.00010895,2]
[424174692,1780626900000,-500.0,0.00010895,2]
[424174688,1780626900000,-500.0,0.00010895,2]
[424174696,1780626901000,-500.0,0.00010895,2]
[424174694,1780626901000,-1200.0,0.00010894,2]
[424174695,1780626901000,-445.45137503,0.00010895,2]
[424174698,1780626901000,-500.0,0.00010895,2]
[424174702,1780626901000,-354.54862497,0.00010895,2]
[424174697,1780626901000,-500.0,0.00010895,2]
[424174701,1780626901000,-500.0,0.00010895,2]
[424174699,1780626901000,-500.0,0.00010895,2]
[424174700,1780626901000,-500.0,0.00010895,2]
[424174703,1780626942000,152.0,0.00029954,120]
[424174704,1780626943000,152.0,0.00029954,120]
[424174706,1780627031000,161.15,0.00030082,120]
[424174707,1780627135000,-150.0,0.00010304,2]
[424174708,1780627188000,-427.86935124,0.00010622,2]
[424174709,1780627203000,-291.47102589,0.00010622,2]